[Event "Marshall CC FIDE Premier February 2024"]
[Site "New York"]
[Date "2024.02.04"]
[Round "4.4"]
[White "Mottola, Max"]
[Black "Zeltsan, Joseph"]
[Result "0-1"]
[ECO "D02"]
[WhiteElo "1977"]
[BlackElo "2439"]
[Annotator "TA"]
[PlyCount "100"]
[EventDate "2024.02.02"]
[EventType "swiss"]
[EventCountry "USA"]
[SourceTitle "playchess.com"]
[Source "ChessBase"]
[SourceQuality "1"]
[TimeControl "5400+30"]

{[%evp 11,100,13,12,19,21,28,32,27,32,30,33,5,0,4,8,6,-10,-13,-18,-108,-123,-121,-116,-298,-272,-290,-280,-292,-279,-301,-307,-295,-291,-391,-408,-426,-434,-495,-492,-479,-477,-460,-517,-522,-528,-512,-513,-600,-398,-391,-398,-398,-288,-290,-290,-290,-290,-290,-290,-290,-290,-290,-290,-290,-290,-290,-290,-290,-290,-290,-290,-290,-290,-297,-298,-297,-300,-478,-441,-660,-655,-652,-643,-661,-654,-693,-687,-671,-643,-628,-624]} 1. d4 {[%emt 0:00:39]} Nf6 {[%emt 0:00:03]} 2. Bf4 {[%emt 0:00:07]} d5 {[%emt 0:00:05]} 3. Nf3 {[%emt 0:00:07]} c5 {[%emt 0:00:03]} 4. e3 {[%emt 0:00:08]} Nc6 {[%emt 0:00:02]} 5. Nbd2 {[%emt 0:00:06]} Bg4 {[%emt 0:00:48]} 6. c3 {[%emt 0:00:10]} e6 {[%emt 0:00:03]} 7. Qb3 {[%emt 0:00:06]} Qc8 {[%emt 0:00:04]} 8. Nh4 {[%emt 0:00:10]} cxd4 {[%emt 0:13:03]} 9. exd4 {[%emt 0:00:35] White is slightly better.} Qd7 {[%emt 0:00:15]} 10. h3 {[%emt 0:03:53]} Bh5 {[%emt 0:00:01]} 11. g4 {[%emt 0:00:59]} Bg6 {[%emt 0:00:03]} 12. Nxg6 {[%emt 0:00:18]} hxg6 {[%emt 0:00:06]} 13. Be2 {[%emt 0:00:40]} Bd6 {[%emt 0:00:22]} 14. Bxd6 {[%emt 0:03:33]} Qxd6 {[%emt 0:00:28]} 15. Qxb7 {[%emt 0:02:30]} (15. Qc2 $11 {keeps the balance.}) 15... Rb8 $17 {[%emt 0:14:09]} 16. Qa6 {[%emt 0:00:09]} Rxb2 {[%emt 0:00:41]} 17. Bb5 $2 {[%emt 0:06:38] [#] White does not recover from this.} (17. g5 $17 Nh7 18. Nb3 (18. Bb5 $2 O-O $19)) 17... O-O $1 $19 {[%emt 0:00:08]} 18. O-O-O {[%emt 0:36:48] [#]} ({But not} 18. Qxc6 Qf4 19. O-O-O Rxa2 $19) 18... Rxb5 {[%emt 0:01:21][%mdl 512]} 19. Qxb5 {[%emt 0:00:07] [#]} Nxd4 $1 {[%emt 0:09:24][%mdl 512]} 20. cxd4 {[%emt 0:07:34] And now Qd3 would win.} (20. Qa5 Ne2+) 20... Rc8+ {[%emt 0:00:29]} 21. Kb2 {[%emt 0:02:38] Threatens to win with Qd3.} Rb8 {[%emt 0:00:03]} 22. Qb3 {[%emt 0:02:04]} Rxb3+ {[%emt 0:02:58]} 23. Nxb3 {[%emt 0:02:42]} Ne4 {[%emt 0:00:02]} 24. Rc1 {[%emt 0:02:21]} Nxf2 {[%emt 0:00:12]} 25. Rc8+ {[%emt 0:00:26]} Kh7 {[%emt 0:00:01]} 26. Rf1 {[%emt 0:00:15]} Qa6 {[%emt 0:08:57]} (26... Nxh3 $2 27. Rc3 Qh2+ 28. Rc2 $19) 27. Rxf2 {[%emt 0:00:18]} Qxc8 {[%emt 0:00:04]} 28. Rxf7 {[%emt 0:00:16][%mdl 4096] Endgame. KQ-KRN} Qb8 {[%emt 0:00:03]} 29. Rf3 {[%emt 0:01:46]} a5 {[%emt 0:00:19]} 30. Kc2 {[%emt 0:01:47]} Qb4 {[%emt 0:00:17]} 31. Rd3 {[%emt 0:00:20]} Qe1 {[%emt 0:09:37]} 32. Nd2 {[%emt 0:03:01]} Qa1 {[%emt 0:00:32]} 33. a3 {[%emt 0:00:50]} Qe1 {[%emt 0:08:38]} 34. Nf3 {[%emt 0:01:30]} Qe2+ {[%emt 0:00:02]} 35. Nd2 {[%emt 0:00:19]} Kh6 {[%emt 0:01:08]} 36. Rf3 {[%emt 0:04:05]} Kg5 {[%emt 0:00:04]} 37. Kc1 {[%emt 0:01:33]} Qe1+ {[%emt 0:00:45]} 38. Kc2 {[%emt 0:00:07]} Qg1 {[%emt 0:00:03]} 39. Rd3 {[%emt 0:02:44] Intending Nf3+ and mate.} Qa1 {[%emt 0:00:02]} 40. Re3 {[%emt 0:01:35]} Kf6 {[%emt 0:02:26]} (40... Qxd4 $2 {too greedy.} 41. Nf3+ (41. Rxe6 $2 Kh6 $19) 41... Kf4 42. Nxd4 $18) 41. Nf3 {[%emt 0:04:22]} Qa2+ {[%emt 0:00:11]} 42. Kd1 {[%emt 0:01:31]} Qf2 {[%emt 0:00:09]} 43. Rd3 {[%emt 0:00:59]} Qf1+ {[%emt 0:00:04]} 44. Ne1 {[%emt 0:00:43]} (44. Kc2 $142) 44... Kg5 {[%emt 0:04:34] Black is clearly winning.} 45. Rf3 {[%emt 0:00:57]} (45. Kd2 $142) 45... Qg1 {[%emt 0:00:05]} 46. Rd3 {[%emt 0:00:56]} Kf4 {[%emt 0:00:32]} 47. Kd2 {[%emt 0:03:04]} Qf2+ {[%emt 0:00:17]} 48. Kd1 {[%emt 0:00:04]} Ke4 {[%emt 0:00:05][%cal Of2e1] ...Qxe1+! is the strong threat.} 49. Rd2 {[%emt 0:00:22]} Qf1 {[%emt 0:00:35]} 50. h4 {[%emt 0:00:37]} Ke3 {[%emt 0:02:26] Weighted Error Value: White=0.30/Black=0.10 (very precise) .  Loses game:     	White=1     	---        Mistake:       	White=3     	---        Inaccurate:     	White=2     	Black=1      OK:         	White=14    	Black=25     Best:        	White=5     	Black=3      Strong:       	---       	Black=1      Brilliant:      	---       	Black=1} 0-1

[Event "Marshall CC FIDE Premier February 2024"]
[Site "New York"]
[Date "2024.02.04"]
[Round "4.5"]
[White "Knowles, Chase"]
[Black "Pressman, Leif"]
[Result "0-1"]
[ECO "A09"]
[WhiteElo "1941"]
[BlackElo "2258"]
[Annotator "TA"]
[PlyCount "62"]
[EventDate "2024.02.02"]
[EventType "swiss"]
[EventCountry "USA"]
[SourceTitle "playchess.com"]
[Source "ChessBase"]
[SourceQuality "1"]
[TimeControl "5400+30"]

{[%evp 9,62,0,0,0,-5,-29,-4,-19,-12,-34,0,0,77,-15,18,10,0,-33,-33,-47,-44,-39,-23,-108,-39,-38,-55,-47,-36,-46,-81,-217,-210,-303,-308,-520,-316,-304,-304,-318,-328,-347,-345,-522,-481,-670,-668,-1212,-1172,-1566,-1453,-1963,-1899,-2339,-2161]} 1. Nf3 {[%emt 0:04:50]} d5 {[%emt 0:01:11][%cal Bd7d5,Bd5d4][%mdl 32]} 2. c4 {[%emt 0:00:08]} d4 {[%emt 0:02:33]} 3. b4 {[%emt 0:00:20]} c5 {[%emt 0:00:38]} 4. Bb2 {[%emt 0:00:29]} Nf6 {[%emt 0:03:21]} 5. e3 {[%emt 0:01:07]} dxe3 {[%emt 0:02:11]} 6. fxe3 {[%emt 0:01:05]} cxb4 {[%emt 0:00:45]} 7. d4 {[%emt 0:02:42]} Bg4 {[%emt 0:09:21]} 8. Be2 {[%emt 0:04:17] The position is equal.} e6 {[%emt 0:03:25]} 9. O-O {[%emt 0:01:30]} Nbd7 {[%emt 0:01:39]} 10. Nbd2 {[%emt 0:00:57]} Bd6 {[%emt 0:02:21] [#]} (10... Qc7 $11) 11. Qe1 {[%emt 0:07:21]} (11. e4 $1 $16 {[%cal Re4e5]}) 11... Qe7 {[%emt 0:04:53]} 12. c5 {[%emt 0:05:28]} Bc7 {[%emt 0:01:05]} 13. Nc4 {[%emt 0:01:56]} O-O {[%emt 0:03:44]} 14. a3 {[%emt 0:07:01]} a5 {[%emt 0:03:40]} 15. axb4 {[%emt 0:08:34]} axb4 {[%emt 0:00:21]} 16. Bd3 {[%emt 0:02:12]} (16. Qxb4 $11 {keeps the balance.} b6 17. Rxa8 Rxa8 18. Ba3) 16... Rfd8 {[%emt 0:08:46]} ({Black should play} 16... Rxa1 $17 17. Bxa1 Bxf3 18. Rxf3 b6 19. Qxb4 (19. c6 $2 Nb8 $19) 19... bxc5) 17. Qh4 $15 {[%emt 0:01:20][%cal Od3h7] And now Bxh7+! would win.} (17. Qxb4 Rxa1 18. Rxa1 b6 $17 (18... Nxc5 19. Nfe5 $18)) 17... Bf5 {[%emt 0:04:43]} 18. e4 {[%emt 0:07:25] Strongly threatening Rxa8.} Rxa1 {[%emt 0:03:28]} 19. Bxa1 {[%emt 0:07:12]} Bg6 {[%emt 0:02:38][%cal Od7c5]} 20. Nd6 {[%emt 0:06:12] [#] This move loses the game for White.} b6 $1 $19 {[%emt 0:07:01]} ({Worse is} 20... Bxd6 21. cxd6 Qf8 (21... Qxd6 22. e5 $14) 22. Ne5 (22. Qf4 Ne8 $17) 22... Nxe5 (22... Qxd6 23. Nxg6 hxg6 24. e5 $16) 23. dxe5 $14) 21. Bb5 {[%emt 0:06:45]} (21. Ne5 $142 bxc5 22. Ndxf7 cxd4 (22... Bxf7 $2 23. Nc6 $19) 23. Nxg6 Qxf7 24. e5 hxg6 (24... Nxe5 25. Nxe5 Bxe5 26. Bxh7+ Kf8 27. Bd3 $19) 25. exf6 gxf6 (25... Nxf6 26. Qh3 $17) 26. Bxd4) 21... bxc5 {[%emt 0:02:26]} 22. Bxd7 $2 {[%emt 0:08:03]} (22. dxc5 Nxc5 23. e5) 22... Rxd7 {[%emt 0:09:50]} 23. dxc5 {[%emt 0:01:30] [#]} Nxe4 $1 {[%emt 0:00:42][%mdl 512]} 24. Qxe7 {[%emt 0:02:49]} Rxe7 {[%emt 0:00:02]} 25. Nb5 {[%emt 0:00:28]} Nxc5 {[%emt 0:00:50] White must now prevent ...Bd3.} 26. Rc1 {[%emt 0:00:15]} (26. Nxc7 {might work better.} Rxc7 27. Rc1) 26... Nb3 {[%emt 0:00:40] Black is clearly winning.} 27. Rd1 {[%emt 0:00:21]} Bb6+ {[%emt 0:00:24]} 28. Bd4 {[%emt 0:00:37]} Nxd4 {[%emt 0:00:20]} 29. Nfxd4 {[%emt 0:00:42]} e5 {[%emt 0:01:07]} 30. Rc1 {[%emt 0:00:20]} Re8 {[%emt 0:00:26]} 31. Nd6 {[%emt 0:00:56]} Bxd4+ {[%emt 0:10:31] Weighted Error Value: White=1.19/Black=0.27 (precise) .  Mistake:       	White=6     	Black=2      Inaccurate:     	White=3     	Black=3      OK:         	White=6     	Black=9      Best:        	---       	Black=1      Strong:       	---       	Black=1      Brilliant:      	---       	Black=1} 0-1

[Event "Marshall CC FIDE Premier February 2024"]
[Site "New York"]
[Date "2024.02.05"]
[Round "5.1"]
[White "Zeltsan, Joseph"]
[Black "Bortnyk, Mykola"]
[Result "1/2-1/2"]
[ECO "C41"]
[WhiteElo "2439"]
[BlackElo "2421"]
[Annotator "TA"]
[PlyCount "84"]
[EventDate "2024.02.02"]
[EventType "swiss"]
[EventCountry "USA"]
[SourceTitle "playchess.com"]
[Source "ChessBase"]
[SourceQuality "1"]
[TimeControl "5400+30"]

{[%evp 20,84,58,40,54,13,29,39,53,24,48,24,83,27,29,17,19,22,22,25,19,25,21,0,0,0,0,0,0,-23,-19,-18,-19,-51,-31,-58,-56,-73,-37,-77,0,0,0,0,0,0,0,0,0,0,0,-91,-79,-90,-107,-128,-135,-123,-77,-56,-59,-59,0,-8,0,-44,0]} 1. e4 {[%emt 1:31:00]} e5 2. Nf3 d6 3. d4 exd4 4. Nxd4 Nf6 5. Nc3 Be7 6. Bf4 O-O 7. Qd2 Nc6 8. O-O-O Nxd4 9. Qxd4 Be6 10. Kb1 a6 11. f3 b5 12. Nd5 Bxd5 13. exd5 Nd7 {White is slightly better.} 14. Qd2 {[%cal Oh2h4]} Ne5 15. Be2 Bf6 {[#]} (15... Re8 $11) 16. Bxe5 (16. g4 $1 $16) 16... dxe5 $11 {Black is weak on the light squares} 17. Bd3 {[%cal Oh2h4]} g6 18. Be4 Bg5 19. Qe1 f5 20. Bd3 Qd6 {[%cal Og5f6]} (20... Qxd5 $2 21. Be4 Qc5 22. Bxa8 Rxa8 23. g4 $18) 21. g4 fxg4 (21... Qxd5 $2 22. h4 (22. Be4 Qxd1+ 23. Qxd1 fxe4 $18) 22... Bf4 23. Be4 $18) 22. fxg4 Rf4 23. h4 Bf6 24. Be4 ({Much worse is} 24. h5 e4 25. Be2 (25. Bxe4 $2 Qe5 $19) 25... g5 $15) 24... Rxg4 25. h5 {hxg6 is the strong threat.} g5 26. h6 Rf4 27. Rh2 {[%cal Oc2c4]} Rf8 28. c4 Be7 29. Rc2 Qb4 ({Reject} 29... Qxh6 30. cxb5 axb5 31. Rxc7 $11) (29... bxc4 $17 30. Rxc4 Qd7) 30. Qe2 bxc4 31. Rxc4 Qb6 {[%cal Of4f2] [#] Hoping for ...Rf2!} 32. Rc6 Rf2 $36 {[%mdl 2048] Black is pushing.} 33. Bxh7+ (33. Qxa6 $2 Qxb2#) 33... Kh8 $1 34. Rxb6 Rxe2 35. Re6 (35. Rxa6 $2 {loses.} Kxh7 36. Ra7 Bd6 $19 (36... Kxh6 $2 37. Rxc7 Bd8 38. Rc6+ Kg7 39. Rc2 $19)) (35. Bd3 $11 {remains equal.} cxb6 36. Bxe2) 35... Kxh7 $17 36. Rxe7+ Kxh6 37. Rxc7 {[%mdl 4096] Endgame. KRR-KRR} Rff2 {[%cal Og5g4] And now ...g4! would win.} 38. Rb7 Rd2 (38... g4 $142 {...g3 would now be deadly.} 39. d6 Rd2 40. Rh1+ Kg6) 39. Kc1 Rc2+ 40. Kb1 Rcd2 ({Better is} 40... e4 $15 41. d6 Rcd2 42. Rxd2 Rxd2) 41. Kc1 $1 $11 Rc2+ 42. Kb1 Rcd2 {Weighted Error Value: White=0.15 (very precise) /Black=0.13 (very precise) .  Mistake:       	White=2     	Black=4      Inaccurate:     	White=6     	Black=2      OK:         	White=8     	Black=14     Best:        	White=3     	Black=5      Strong:       	White=1     	Black=1} 1/2-1/2

[Event "Marshall CC FIDE Premier February 2024"]
[Site "New York"]
[Date "2024.02.05"]
[Round "5.2"]
[White "Hebbar, Eshaan"]
[Black "Pressman, Leif"]
[Result "1/2-1/2"]
[ECO "D46"]
[WhiteElo "2018"]
[BlackElo "2258"]
[Annotator "TA"]
[PlyCount "115"]
[EventDate "2024.02.02"]
[EventType "swiss"]
[EventCountry "USA"]
[SourceTitle "playchess.com"]
[Source "ChessBase"]
[SourceQuality "1"]
[TimeControl "5400+30"]

{[%evp 31,115,50,46,58,54,32,52,24,52,40,48,45,126,131,121,133,129,126,136,71,57,49,51,40,54,44,57,35,16,41,50,39,91,8,8,0,0,0,0,-38,-52,-137,-156,-179,-180,-375,-53,-45,0,0,0,0,13,12,23,0,0,0,17,25,11,11,18,8,8,8,8,8,8,4,8,8,8,8,8,11,21,11,50,0,0,0,57,0,0,0]} 1. d4 {[%emt 0:00:04]} d5 {[%emt 0:00:34]} 2. c4 {[%emt 0:00:07]} e6 {[%emt 0:00:44]} 3. Nc3 {[%emt 0:00:08]} c6 {[%emt 0:00:14]} 4. Nf3 {[%emt 0:00:08]} Nf6 {[%emt 0:00:25]} 5. e3 {[%emt 0:00:10]} Nbd7 {[%emt 0:00:19]} 6. Qc2 {[%emt 0:00:07]} Bd6 {[%emt 0:00:30]} 7. Bd3 {[%emt 0:00:14]} O-O {[%emt 0:03:36]} 8. O-O {[%emt 0:00:13]} dxc4 {[%emt 0:01:21]} 9. Bxc4 {[%emt 0:00:03]} b5 {[%emt 0:01:18]} 10. Bd3 {[%emt 0:00:11]} Bb7 {[%emt 0:01:29]} 11. e4 {[%emt 0:01:07]} e5 {[%emt 0:00:57]} 12. dxe5 {[%emt 0:00:09]} Nxe5 {[%emt 0:00:12]} 13. Nxe5 {[%emt 0:00:07]} Bxe5 {[%emt 0:00:01]} 14. h3 {[%emt 0:00:26]} Re8 {[%emt 0:06:03]} 15. Be3 {[%emt 0:03:27]} Bd4 {[%emt 0:05:12]} 16. Bxd4 {[%emt 0:01:31]} Qxd4 {[%emt 0:00:02]} 17. Rad1 {[%emt 0:00:16]} Qc5 {[%emt 0:01:43]} 18. Rfe1 {[%emt 0:01:31]} h6 {[%emt 0:06:55]} 19. a3 {[%emt 0:03:59]} a5 {[%emt 0:00:51]} 20. Qd2 {[%emt 0:07:06]} Kh8 {[%emt 0:13:14]} 21. Qf4 {[%emt 0:01:56]} Qe5 {[%emt 0:05:58]} (21... Re7 $14) 22. Qxe5 $16 {[%emt 0:01:38]} Rxe5 {[%emt 0:00:52]} 23. f4 {[%emt 0:00:02]} Re7 {[%emt 0:00:58]} 24. e5 {[%emt 0:02:34]} Nh5 {[%emt 0:04:16] [#]} 25. Ne2 {[%emt 0:01:11]} (25. Rf1 $142 $1 {g4 would now be deadly.} g6 26. g4) 25... g5 $16 {[%emt 0:01:00]} 26. fxg5 {[%emt 0:00:24]} hxg5 {[%emt 0:00:52]} 27. Nd4 {[%emt 0:01:42]} Rae8 {[%emt 0:02:17]} 28. Nf3 {[%emt 0:00:28]} Kg7 {[%emt 0:01:28]} 29. Be4 {[%emt 0:03:54]} Ng3 {[%emt 0:06:07]} 30. Bb1 {[%emt 0:01:18]} (30. Nxg5 $2 Rxe5 31. Nxf7 Kxf7 $19 (31... Rxe4 $2 32. Rxe4 Nxe4 33. Nd6 $19)) 30... c5 {[%emt 0:01:31]} 31. Kf2 {[%emt 0:02:35]} Nh5 {[%emt 0:02:55]} (31... Bxf3 $14 32. Kxf3 Nh5) 32. Be4 {[%emt 0:01:19]} ({Better is} 32. Nxg5 $16 Nf4 (32... Rxe5 33. Rxe5 Rxe5 34. Nxf7 $16) 33. Nf3) 32... Nf4 $11 {[%emt 0:04:54]} 33. Bxb7 {[%emt 0:01:50]} (33. Nxg5 Rxe5 (33... Bxe4 34. Rxe4 Ng6 35. e6 $14) 34. g3 (34. Bxb7 Rxe1 35. Rd6 R8e2+ 36. Kg3 Ne6 $19) 34... Nxh3+ (34... Bxe4 35. gxf4 R5e7 36. h4 $11) 35. Nxh3 Bxe4 $17 (35... Rxe4 36. Rxe4 Bxe4 37. Nf4 $17)) 33... Rxb7 {[%emt 0:00:02]} 34. Nxg5 {[%emt 0:00:26]} c4 {[%emt 0:00:15]} 35. Re4 {[%emt 0:05:46]} Nd3+ {[%emt 0:00:39]} 36. Ke3 {[%emt 0:00:15]} (36. Kg3 $15) 36... Nxb2 $17 {[%emt 0:01:59]} 37. Rf1 {[%emt 0:02:46]} c3 {[%emt 0:02:02]} 38. e6 $2 {[%emt 0:01:39]} (38. Nf3 {was called for.}) 38... Nc4+ $2 {[%emt 0:06:32]} (38... f6 $19 39. Nf3 f5) 39. Kd3 $15 {[%emt 0:00:20]} f6 {[%emt 0:02:42]} (39... Nxa3 $2 40. exf7 (40. Nxf7 Rxe6 41. Rxe6 Rxf7 $18) 40... Rd7+ 41. Rd4 (41. Kxc3 Rc8+ 42. Kb2 Rd2+ 43. Kb3 Rd3+ 44. Ka2 Rd2+ 45. Ka1 Nc2+ 46. Kb1 Na3+ 47. Ka1 Nc2+ 48. Kb1 Na3+ 49. Ka1 $11) 41... Rxd4+ 42. Kxd4 Nc2+ (42... Rd8+ $2 43. Kxc3 Rc8+ 44. Kb3 $18) 43. Kxc3 Rc8+ 44. Kd3 $18) 40. Nf3 $1 {[%emt 0:00:10]} Rc7 {[%emt 0:01:21]} 41. Nd4 {[%emt 0:02:25]} (41. Kxc3 $2 Ne3+ (41... Nxa3+ 42. Kb2 $11) 42. Kd3 Nxf1 $19) 41... Ne5+ {[%emt 0:04:23]} 42. Kc2 {[%emt 0:00:15]} b4 {[%emt 0:02:04]} 43. g4 {[%emt 0:02:35]} Nc4 {[%emt 0:01:34]} 44. Nf5+ {[%emt 0:01:24]} Kh7 {[%emt 0:00:49]} (44... Kg6 $5 45. Rxc4 Rxc4 $11) 45. Rxc4 $1 {[%emt 0:01:53]} Rxc4 {[%emt 0:00:05]} 46. Nd6 {[%emt 0:00:04]} Rcc8 $1 {[%emt 0:01:55]} ({Don't blunder} 46... Rec8 $2 47. g5 (47. Rxf6 $2 b3+ 48. Kc1 b2+ 49. Kc2 Rb8 $19) 47... R4c6 (47... b3+ $2 48. Kxb3 c2 49. Nxc4 $18) 48. Nxc8 $16) 47. axb4 {[%emt 0:52:07]} ({Of course not} 47. Rxf6 b3+ 48. Kxb3 c2 $17) (47. Nxe8 {is more complex.} Rxe8 48. Rxf6 Kg7 49. g5) 47... axb4 {[%emt 0:00:05]} 48. Nxe8 {[%emt 0:00:00]} Rxe8 {[%emt 0:00:08]} 49. Rxf6 {[%emt 0:00:00]} Kg7 {[%emt 0:01:46]} 50. g5 {[%emt 0:00:00]} (50. Rf4 {simplifies} Rxe6 51. Rxb4 Rh6 52. Rb7+) 50... Rc8 {[%emt 0:02:07]} 51. e7 {[%emt 0:00:00]} Re8 {[%emt 0:00:49]} 52. Re6 {[%emt 0:00:00]} Kf7 {[%emt 0:00:12]} 53. Re4 {[%emt 0:00:00]} Rxe7 {[%emt 0:00:32]} 54. Rxb4 {[%emt 0:00:00]} Re2+ {[%emt 0:00:32]} 55. Kc1 {[%emt 0:00:00]} ({White should try} 55. Kb3 $1 $14) 55... Re1+ {[%emt 0:01:40]} ({Black should play} 55... Kg6 $11) 56. Kc2 $14 {[%emt 0:00:00]} Re2+ $1 {[%emt 0:00:02]} 57. Kc1 {[%emt 0:00:00]} ({Don't play} 57. Kxc3 Re3+ 58. Kc2 Rxh3 $11) (57. Kb3 $1 $14) 57... Re1+ $11 {[%emt 0:00:03]} 58. Kc2 {[%emt 0:00:00]} 1/2-1/2

[Event "Marshall CC FIDE Premier February 2024"]
[Site "New York"]
[Date "2024.02.05"]
[Round "5.3"]
[White "Hughes, John L"]
[Black "Lin, Bryan Enming"]
[Result "1-0"]
[ECO "C45"]
[WhiteElo "2167"]
[BlackElo "2102"]
[Annotator "TA"]
[PlyCount "143"]
[EventDate "2024.02.02"]
[EventType "swiss"]
[EventCountry "USA"]
[SourceTitle "playchess.com"]
[Source "ChessBase"]
[SourceQuality "1"]
[TimeControl "5400+30"]

{[%evp 48,143,101,91,88,63,131,131,155,139,149,138,147,110,131,105,104,91,93,72,115,93,93,93,89,85,95,91,120,21,149,134,154,157,233,238,268,255,229,180,186,190,258,234,485,479,413,322,300,300,367,196,288,227,635,471,479,489,477,462,400,311,556,496,826,523,1438,1485,1521,1491,1374,1249,1467,856,1615,1541,1629,1585,2397,2237,2135,1699,29978,29979,29979,29980,29980,29981,29980,29978,29977,29979,29985,29986,29987,29988,29988,29989]} 1. e4 {[%emt 0:02:24]} e5 {[%emt 0:00:07]} 2. Nf3 {[%emt 0:00:53]} Nc6 {[%emt 0:00:17]} 3. d4 {[%emt 0:00:07]} exd4 {[%emt 0:00:06]} 4. Nxd4 {[%emt 0:00:02]} Bb4+ {[%emt 0:00:24]} 5. c3 {[%emt 0:00:39]} Bc5 {[%emt 0:00:08]} 6. Be3 {[%emt 0:00:44]} Bb6 {[%emt 0:00:08]} 7. Nf5 {[%emt 0:00:32]} d5 {[%emt 0:00:09] C45: Scotch Game.} 8. Nxg7+ {[%emt 0:05:02]} Kf8 {[%emt 0:00:06]} 9. Bxb6 {[%emt 0:00:31]} axb6 {[%emt 0:00:21]} 10. exd5 {[%emt 0:07:46]} Ne5 {[%emt 0:00:20]} 11. Nh5 {[%emt 0:07:06]} Bg4 {[%emt 0:04:56]} 12. Be2 {[%emt 0:02:27]} Qh4 $146 {[%emt 0:00:36]} ({Predecessor:} 12... Qg5 13. f4 Qxh5 14. fxe5 Qxe5 15. Kf2 Nf6 16. Bxg4 Qf4+ 17. Bf3 Ng4+ 18. Ke1 Re8+ {0-1 Zakaryan,D (2318)-Moiseenko,V (2549) Sochi Lobanov Memorial 2021 (7)}) 13. Ng3 {[%emt 0:17:40]} Bxe2 {[%emt 0:00:12]} 14. Nxe2 {[%emt 0:03:28]} Ng4 {[%emt 0:01:06]} 15. g3 {[%emt 0:15:14]} Qh5 {[%emt 0:00:58]} 16. h4 {[%emt 0:03:54]} N8f6 {[%emt 0:02:11]} 17. O-O {[%emt 0:04:16]} Nxd5 {[%emt 0:01:32]} 18. c4 {[%emt 0:05:50]} Ndf6 {[%emt 0:02:21]} 19. Nbc3 {[%emt 0:01:59]} Rg8 {[%emt 0:01:11]} 20. Nd5 {[%emt 0:05:53]} Qe5 {[%emt 0:04:51]} 21. Qd4 {[%emt 0:02:03]} Qxd4 {[%emt 0:00:53]} 22. Nxd4 {[%emt 0:00:04]} Nxd5 {[%emt 0:00:06]} 23. cxd5 {[%emt 0:00:05]} Ra5 {[%emt 0:00:32]} 24. d6 {[%emt 0:02:20]} cxd6 {[%emt 0:00:48]} 25. Rfc1 {[%emt 0:01:07]} Rd5 {[%emt 0:02:16]} 26. Nf3 {[%emt 0:00:55]} Rd3 {[%emt 0:00:55]} (26... Rg6 $14) 27. Kg2 $16 {[%emt 0:03:45]} Rg6 {[%emt 0:00:41]} 28. Rd1 {[%emt 0:00:41]} Rxd1 {[%emt 0:00:34]} 29. Rxd1 {[%emt 0:00:01]} Ke7 {[%emt 0:01:54]} 30. Nd4 {[%emt 0:02:36]} Rf6 {[%emt 0:01:05]} 31. Re1+ {[%emt 0:00:50]} Kd7 {[%emt 0:00:13]} 32. f3 {[%emt 0:00:48]} Ne5 {[%emt 0:00:11]} 33. Re3 {[%emt 0:03:25]} Nc4 {[%emt 0:01:29]} 34. Re2 {[%emt 0:00:40]} Ne5 {[%emt 0:00:13]} 35. b3 {[%emt 0:01:17]} Nc6 {[%emt 0:00:15]} 36. Nb5 {[%emt 0:00:43]} Rf5 {[%emt 0:00:19]} 37. Nc3 {[%emt 0:00:06]} Nd4 {[%emt 0:01:54]} 38. Re3 {[%emt 0:00:04]} (38. Rf2 $16) 38... Rc5 {[%emt 0:00:39] [#]} (38... Nc2 $11 {keeps the balance.} 39. Re2 Nb4) 39. Ne4 $1 $16 {[%emt 0:01:29]} Rc2+ {[%emt 0:01:16]} 40. Kh3 {[%emt 0:00:02]} Kc6 {[%emt 0:13:04]} (40... d5 $16) 41. Rd3 $18 {[%emt 0:00:29]} Nf5 {[%emt 0:07:48]} 42. g4 {[%emt 0:00:24]} d5 {[%emt 0:00:16]} 43. Nf6 {[%emt 0:00:30]} Ne7 {[%emt 0:00:12]} 44. Nxh7 {[%emt 0:00:33]} Kd6 {[%emt 0:00:33]} (44... Ng6 {was worth a try.} 45. Kg3 Rxa2) 45. h5 {[%emt 0:00:31]} Nc6 $2 {[%emt 0:01:24]} (45... Rxa2 46. g5 Kc5) 46. Nf6 $18 {[%emt 0:00:44]} Ne5 {[%emt 0:01:30]} 47. Rd1 {[%emt 0:00:44]} Nxf3 {[%emt 0:02:33]} 48. Nxd5 {[%emt 0:00:05]} Ke5 {[%emt 0:00:47]} 49. Kg3 {[%emt 0:00:29]} (49. Nxb6 Ng5+ 50. Kh4 f6 $11) (49. Rf1 $142 Kxd5 50. Rxf3) 49... Nd4 {[%emt 0:00:53]} (49... Ng5 $142 50. Nb4 (50. Nxb6 Rc3+ 51. Kf2 Ne4+ 52. Ke2 f5 $18) 50... Rc3+ 51. Rd3 Rc5 (51... Rxd3+ 52. Nxd3+ Kf6 53. Nf2 $18)) 50. Nb4 {[%emt 0:00:55]} Re2 $2 {[%emt 0:02:31]} (50... Rc3+ 51. Kg2 Rc8 52. Nd3+ Ke6 53. Nf4+ Ke5 54. Nd3+ Kf6 55. Rf1+ Kg7) 51. Re1 {[%emt 0:00:30]} Rxe1 {[%emt 0:00:32]} 52. Nd3+ {[%emt 0:00:00]} Kf6 {[%emt 0:00:06]} 53. Nxe1 {[%emt 0:00:03]} Ne2+ {[%emt 0:00:12]} 54. Kh4 {[%emt 0:00:39]} Nc1 $2 {[%emt 0:00:21]} (54... Nd4 {might work better.} 55. Nd3 Kg7) 55. Nf3 {[%emt 0:00:26]} Nd3 {[%emt 0:01:13]} (55... Kg7 $142 56. g5 Nxa2 57. h6+ Kg8) 56. Nd4 {[%emt 0:02:00]} Nc1 {[%emt 0:01:04]} 57. a4 {[%emt 0:00:00]} Nd3 {[%emt 0:00:10]} 58. g5+ {[%emt 0:00:09]} Kg7 {[%emt 0:00:06]} 59. Nf5+ {[%emt 0:00:40]} Kg8 {[%emt 0:00:11]} 60. Kg4 {[%emt 0:00:25]} Nc5 {[%emt 0:00:26]} 61. Nd4 {[%emt 0:00:05]} Kg7 {[%emt 0:01:08]} 62. Kf5 {[%emt 0:00:10]} Nd3 {[%emt 0:00:14]} 63. h6+ {[%emt 0:00:40]} Kg8 {[%emt 0:00:11]} 64. Kf6 {[%emt 0:00:28]} Nf2 {[%emt 0:00:27]} 65. h7+ {[%emt 0:00:40]} Kxh7 {[%emt 0:00:03]} 66. Kxf7 {[%emt 0:00:05]} Ne4 {[%emt 0:00:14]} 67. g6+ {[%emt 0:00:25]} Kh6 {[%emt 0:00:04]} 68. Nf5+ {[%emt 0:00:29]} Kg5 {[%emt 0:00:08]} 69. g7 {[%emt 0:00:16]} Nf6 {[%emt 0:00:12]} 70. Ne3 {[%emt 0:00:34]} (70. g8=R+ Nxg8 71. Nd6 Nf6 $18) 70... b5 {[%emt 0:00:26]} 71. axb5 {[%emt 0:00:09]} b6 {[%emt 0:00:05]} 72. b4 {[%emt 0:00:12]} 1-0